[Event "44th Chess Olympiad Open 2022"]
[Site "Chennai"]
[Date "2022.07.30"]
[Round "2.53"]
[White "Salim Al Maashani Amer Said"]
[Black "Mansour, Sameer"]
[Result "1-0"]
[ECO "B31"]
[WhiteElo "2038"]
[BlackElo "2275"]
[Annotator "TA"]
[PlyCount "145"]
[EventDate "2022.07.29"]
[EventType "team-tourn"]
[EventCountry "IND"]
[SourceTitle "playchess.com"]
[Source "ChessBase"]
[SourceQuality "1"]
[WhiteTeam "OMA"]
[BlackTeam "Jordan"]
[BlackTeamCountry "JOR"]
[TimeControl "40/5400+30:1800+30"]

{[%evp 16,145,31,31,27,29,27,27,31,18,31,31,23,-3,0,0,0,-81,0,0,0,0,15,7,112,116,108,121,127,122,136,123,122,0,0,0,0,0,0,-31,21,-30,52,25,44,26,90,89,106,14,22,0,0,0,9,0,0,0,0,0,59,-30,76,-24,0,0,0,-11,29,-28,0,-31,-30,-44,-17,-59,-25,-31,-22,-12,-56,-56,37,23,70,0,0,0,0,0,0,0,0,0,0,0,0,0,0,0,0,0,0,0,0,0,0,0,0,0,0,0,0,0,5181,5145,29970,29971,29969,29972,29972,29973,29973,29974,29974,29975,29977,29978,29982,29983,29985,29983]} 1. e4 {[%emt 0:00:03]} c5 {[%emt 0:00:08]} 2. Nf3 {[%emt 0:00:05]} Nc6 {[%emt 0:00:18]} 3. Bb5 {[%emt 0:00:06]} g6 {[%emt 0:00:26]} 4. Bxc6 {[%emt 0:00:13]} dxc6 {[%emt 0:00:29]} 5. d3 {[%emt 0:00:07]} Bg7 {[%emt 0:00:25]} 6. h3 {[%emt 0:00:11]} Nf6 {[%emt 0:00:48]} 7. Nc3 {[%emt 0:00:33]} Nd7 {[%emt 0:00:55]} 8. Be3 {[%emt 0:00:11]} e5 {[%emt 0:00:28]} 9. Qd2 {[%emt 0:00:11]} h6 {[%emt 0:00:35] B31: Sicilian: 2...Nc6 3 Bb5 g6.} 10. O-O {[%emt 0:04:12]} b6 {[%emt 0:00:10]} 11. Nh2 {[%emt 0:00:11]} Nf8 {[%emt 0:00:09] White has an edge.} 12. f4 {[%emt 0:01:12]} exf4 {[%emt 0:00:18]} 13. Bxf4 {[%emt 0:00:09]} Ne6 {[%emt 0:00:19]} 14. Bg3 {[%emt 0:01:03]} Qg5 {[%emt 0:03:46] Against e5} 15. Qxg5 {[%emt 0:02:47]} hxg5 {[%emt 0:14:19] [#]} 16. Ng4 $146 {[%emt 0:10:26]} (16. Rae1 $11) ({Predecessor:} 16. Nf3 Nd4 17. Nxg5 f6 18. Nf3 Nxc2 19. Rac1 Nb4 20. Rcd1 Ba6 21. Ne1 O-O-O 22. Rf3 {0-1 (49) McGowan,C (2221)-Daghli,A (2387) Mumbai 2019}) 16... Nd4 {[%emt 0:05:53]} (16... Nf4 $17 {Hoping for ...Bxg4.} 17. Ne3 (17. Bxf4 gxf4 18. Kf2 Be6 $15) 17... Bd4) 17. Be5 $11 {[%emt 0:10:39]} Bxe5 {[%emt 0:02:06]} 18. Nxe5 {[%emt 0:00:27]} Be6 {[%emt 0:00:36]} 19. Rf2 {[%emt 0:00:32]} Ke7 {[%emt 0:01:05]} (19... O-O $1 $11) 20. Raf1 $16 {[%emt 0:06:22][%cal Re5f7]} Rh7 {[%emt 0:01:18][%cal Og5g4]} 21. Nd1 $1 {[%emt 0:03:12]} g4 {[%emt 0:12:54]} 22. c3 {[%emt 0:05:46]} (22. hxg4 Rah8 23. Rd2 Rh1+ 24. Kf2 Rxf1+ 25. Kxf1 Kf6 $15) (22. Nxg4 Bxg4 23. hxg4 Rah8 $15) 22... g3 {[%emt 0:01:00]} 23. Rd2 {[%emt 0:01:04]} Nb5 {[%emt 0:00:48]} 24. Rf3 {[%emt 0:02:53]} ({Don't do} 24. Nxc6+ Kd6 $14) ({Better is} 24. a4 $16 Nd6 25. Nxc6+ Kd7 26. Ne5+ Kc7 27. Ne3) 24... Rh5 $1 $36 {[%emt 0:03:40][%mdl 2048] White is under pressure.} 25. Ng4 {[%emt 0:09:03]} Bxa2 {[%emt 0:07:09]} ({But not} 25... Bxg4 26. hxg4 Re5 27. Rxg3 $14) 26. Rxg3 {[%emt 0:01:26]} Be6 {[%emt 0:00:11]} 27. Rf3 {[%emt 0:07:32]} Nd6 {[%emt 0:00:44]} (27... Bxg4 $15 28. hxg4 Re5) 28. Re2 {[%emt 0:04:06]} (28. Nf6 $142 Rg5 29. Ne3) 28... Nb5 {[%emt 0:12:21]} (28... Bxg4 $11 29. hxg4 Re5) 29. Nf6 {[%emt 0:01:56]} Rhh8 {[%emt 0:01:53]} 30. Ne3 {[%emt 0:01:51]} Kd6 {[%emt 0:06:03]} (30... Nd6 $11) 31. Nc4+ {[%emt 0:04:24] Pair of Knights!} Kc7 {[%emt 0:01:57]} 32. Ne5 {[%emt 0:00:27] White is more active.} (32. e5 $16) 32... Rad8 {[%emt 0:03:39]} 33. Kf2 {[%emt 0:07:03]} a5 {[%emt 0:00:03]} 34. Nfg4 {[%emt 0:02:31]} Rh7 {[%emt 0:01:10]} 35. Nf6 {[%emt 0:02:03]} Rhh8 {[%emt 0:03:05]} 36. Nfg4 {[%emt 0:00:07]} Nd6 {[%emt 0:02:01]} 37. Rf6 {[%emt 0:02:06][%cal Oe5f7]} a4 {[%emt 0:02:25] [#]} ({Black should try} 37... Rhe8 $11) 38. Ke3 {[%emt 0:03:27]} (38. Nxf7 $1 $14 Bxf7 39. e5) 38... b5 {[%emt 0:00:48] [#]} (38... Rde8 $11 {keeps the balance.}) 39. Ref2 {[%emt 0:02:14]} (39. Nxg6 $1 $16 Rhe8 40. N6e5) 39... Rh7 {[%emt 0:05:50]} (39... Rde8 $5 {[%cal Re8e7]}) 40. Rf1 {[%emt 0:02:52]} Ra8 {[%emt 0:01:47]} 41. Ra1 {[%emt 0:32:30]} Ra6 {[%emt 0:33:24]} 42. Rf2 {[%emt 0:00:00]} (42. Nf3 $142) 42... Rh8 {[%emt 0:00:00][%cal Bh7h8,Bh8a8,Ba8a3,Ba3d3,Bd3d2][%mdl 32]} (42... f5 $5 {[%cal Rf5g4]} 43. Nf6 Rg7 $11) 43. d4 {[%emt 0:00:00]} cxd4+ {[%emt 0:00:00]} 44. cxd4 {[%emt 0:00:00]} Rha8 {[%emt 0:00:00]} 45. Rc2 {[%emt 0:00:00]} a3 {[%emt 0:00:00]} (45... Nxe4 $5 46. Rac1 {[#]} a3 $1 47. Nxc6 (47. Kxe4 $2 Bf5+ 48. Kf4 Bxc2 $19) (47. Rxc6+ $2 Rxc6 48. Rxc6+ Kb7 $17) 47... Nd6 48. Nb4+ Nc4+ 49. Kf2 axb2 $1 50. Nxa6+ Kd6 $15) 46. bxa3 {[%emt 0:00:00]} Rxa3+ {[%emt 0:00:00]} 47. Rxa3 {[%emt 0:00:00]} Rxa3+ {[%emt 0:00:00]} 48. Kf4 {[%emt 0:00:00]} Nc4 {[%emt 0:00:00]} (48... g5+ $1 $15 49. Kxg5 Nxe4+ 50. Kf4 Nc3) 49. Nxc4 $14 {[%emt 0:00:00]} bxc4 {[%emt 0:00:00][%mdl 4096] Endgame KRB-KRN} (49... Bxc4 $11 {deserves consideration.} 50. Ne5 Ra2 51. Rxa2 Bxa2) 50. Ke5 {[%emt 0:00:00]} ({White should play} 50. Ne5 $14) 50... Rd3 {[%emt 0:00:00]} 51. Nf6 {[%emt 0:00:00] Black must now prevent d5.} c3 {[%emt 0:00:00]} 52. d5 $1 {[%emt 0:02:16]} cxd5 {[%emt 0:00:00]} 53. Nxd5+ {[%emt 0:02:08]} Bxd5 {[%emt 0:00:00]} 54. exd5 $11 {[%emt 0:00:01] KR-KR} Kd7 {[%emt 0:00:00]} 55. Ke4 {[%emt 0:01:27]} Rd2 {[%emt 0:00:00]} 56. Rxc3 {[%emt 0:00:09]} (56. Rc1 {keeps more tension.} c2 57. g4 g5 58. Ke3) 56... Rxg2 {[%emt 0:00:00]} 57. Ra3 {[%emt 0:01:21]} Re2+ {[%emt 0:00:00]} 58. Kd4 {[%emt 0:00:23]} Rh2 {[%emt 0:00:00]} 59. Ra7+ {[%emt 0:01:10]} Ke8 {[%emt 0:00:00]} 60. d6 {[%emt 0:00:59]} Rxh3 {[%emt 0:00:00]} 61. Re7+ {[%emt 0:00:20]} Kf8 {[%emt 0:00:00]} 62. Re2 {[%emt 0:00:41] d7 would kill now.} Rh1 {[%emt 0:00:00]} 63. Kc5 {[%emt 0:01:05]} Rd1 {[%emt 0:02:21]} 64. Kc6 {[%emt 0:00:17]} f5 $2 {[%emt 0:01:31][%mdl 8192]} (64... g5 $11) 65. d7 $18 {[%emt 0:00:33] White wants to mate with Re8+.} Kf7 {[%emt 0:00:22]} 66. Re8 {[%emt 0:00:39] White mates.} Kf6 {[%emt 0:04:45]} 67. d8=Q+ {[%emt 0:00:35]} Rxd8 {[%emt 0:00:06]} 68. Rxd8 {[%emt 0:00:02] KR-KPP} Ke5 {[%emt 0:00:11]} 69. Kc5 {[%emt 0:00:32]} Ke4 {[%emt 0:00:11]} 70. Kc4 {[%emt 0:00:49]} Ke3 {[%emt 0:00:01]} 71. Re8+ {[%emt 0:00:35]} Kd2 {[%emt 0:00:30]} 72. Kd4 {[%emt 0:00:18]} Kd1 {[%emt 0:03:09]} 73. Ke5 {[%emt 0:00:26] Weighted Error Value: White=0.22 (precise) /Black=0.25 (precise)} 1-0

[Event "44th Chess Olympiad Open 2022"]
[Site "Chennai"]
[Date "2022.07.30"]
[Round "2.53"]
[White "Al Busaidi, Hamood"]
[Black "Aboudi, Marwan"]
[Result "0-1"]
[ECO "B56"]
[WhiteElo "1743"]
[BlackElo "2144"]
[Annotator "TA"]
[PlyCount "54"]
[EventDate "2022.07.29"]
[EventType "team-tourn"]
[EventCountry "IND"]
[SourceTitle "playchess.com"]
[Source "ChessBase"]
[SourceQuality "1"]
[WhiteTeam "OMA"]
[BlackTeam "Jordan"]
[BlackTeamCountry "JOR"]
[TimeControl "40/5400+30:1800+30"]

{[%evp 12,54,33,40,31,4,7,0,0,-16,0,-28,-17,-58,-62,-83,-87,-87,-84,-194,-177,-196,-210,-205,-184,-184,-191,-245,-254,-379,-381,-388,-363,-393,-393,-894,-866,-1763,-1776,-1735,-1648,-1782,-1803,-2579,-2523]} 1. e4 {[%emt 0:00:03]} c5 {[%emt 0:00:06]} 2. Nf3 {[%emt 0:00:04]} d6 {[%emt 0:00:06]} 3. d4 {[%emt 0:00:11]} cxd4 {[%emt 0:00:07]} 4. Nxd4 {[%emt 0:00:05]} Nf6 {[%emt 0:00:09]} 5. Nc3 {[%emt 0:00:06]} Nc6 {[%emt 0:00:38]} 6. h3 {[%emt 0:05:26]} e6 {[%emt 0:01:50]} 7. Be3 {[%emt 0:01:20]} Be7 {[%emt 0:00:24] B56: Classical Sicilian: Unusual Lines.} 8. Be2 {[%emt 0:00:30]} O-O {[%emt 0:03:13]} 9. Qd2 {[%emt 0:00:24]} a6 {[%emt 0:03:48][%cal Ba7a6,Ba6b5,Bb5b4][%mdl 32] The position is equal.} 10. a4 {[%emt 0:03:13]} Bd7 {[%emt 0:20:17] [#]} 11. g4 $146 {[%emt 0:18:22]} ({Predecessor:} 11. O-O Rc8 12. Nxc6 Bxc6 13. Bd3 d5 14. e5 Nd7 15. Bf4 g6 16. Ne2 Nc5 17. Bh6 {0-1 (30) Geldimamedov,H-Kataev,S (2297) Moscow 1983}) 11... Nxd4 {[%emt 0:00:36]} 12. Bxd4 {[%emt 0:00:23]} Bc6 {[%emt 0:01:10]} 13. Qe3 {[%emt 0:10:17]} b5 {[%emt 0:08:42]} (13... Nd7 {seems wilder.} 14. Qd2 b5 15. axb5 axb5 16. O-O b4) 14. axb5 {[%emt 0:32:05]} axb5 {[%emt 0:02:55]} 15. Rxa8 {[%emt 0:03:03]} (15. O-O $17) 15... Qxa8 $19 {[%emt 0:00:25]} 16. Bxf6 {[%emt 0:12:34]} Bxf6 {[%emt 0:01:16]} 17. O-O {[%emt 0:02:17]} b4 {[%emt 0:13:35]} 18. Nb5 {[%emt 0:03:58]} Bxe4 {[%emt 0:01:02]} 19. Nxd6 {[%emt 0:02:29]} (19. c4 $142) 19... Bxc2 {[%emt 0:00:11] A strong pair of Bishops.} 20. Bf3 {[%emt 0:01:23]} (20. Nc4 $142) 20... Qa2 {[%emt 0:05:02]} 21. b3 {[%emt 0:01:47]} Bxb3 {[%emt 0:05:50]} 22. g5 {[%emt 0:00:13]} Be7 {[%emt 0:11:43]} 23. Nb5 {[%emt 0:00:05] [#]} (23. Nf5 Bxg5 24. Qxg5 exf5 25. Qf4) 23... Bc4 {[%emt 0:01:12][%csl LRb5,LRf1] Black is clearly winning.} 24. Nc7 {[%emt 0:01:06]} Bxf1 {[%emt 0:02:32]} 25. Kxf1 {[%emt 0:00:14]} Qc4+ {[%emt 0:00:13]} 26. Be2 {[%emt 0:00:25]} Qxc7 {[%emt 0:00:11]} 27. g6 {[%emt 0:00:28]} hxg6 {[%emt 0:00:14] White got outplayed after the opening.  Weighted Error Value: White=0.87/Black=0.01 (flawless)} 0-1

[Event "44th Chess Olympiad Open 2022"]
[Site "Chennai"]
[Date "2022.07.30"]
[Round "2.54"]
[White "Jingjang, Shin"]
[Black "Pesqueira, Jose"]
[Result "1/2-1/2"]
[ECO "B06"]
[WhiteElo "1956"]
[BlackElo "1809"]
[Annotator "TA"]
[PlyCount "88"]
[EventDate "2022.07.29"]
[EventType "team-tourn"]
[EventCountry "IND"]
[SourceTitle "playchess.com"]
[Source "ChessBase"]
[SourceQuality "1"]
[WhiteTeam "Thailand"]
[BlackTeam "ARU"]
[WhiteTeamCountry "THA"]
[TimeControl "40/5400+30:1800+30"]

{[%evp 9,88,44,93,113,140,145,243,233,249,164,169,192,175,139,193,203,214,215,307,165,197,119,147,120,138,63,115,108,114,72,87,64,61,39,204,77,62,50,66,32,50,42,38,13,94,0,6,0,0,0,8,0,30,0,0,0,45,45,45,47,46,19,19,20,20,19,19,20,20,0,0,0,0,0,0,-16,0,0,0,0,0]} 1. d4 {[%emt 0:00:15]} g6 {[%emt 0:00:09]} 2. Nf3 {[%emt 0:00:04]} Bg7 {[%emt 0:00:08]} 3. Bg5 {[%emt 0:00:04]} d6 {[%emt 0:00:49]} 4. e4 {[%emt 0:00:44]} c5 {[%emt 0:06:41]} 5. c3 {[%emt 0:00:35]} Bg4 {[%emt 0:06:20] [#]} (5... cxd4 $14 6. cxd4 Nc6) 6. dxc5 $146 {[%emt 0:04:04] B06: Modern Defence.} ({Predecessor:} 6. d5 Qb6 7. Qc2 Bxf3 8. gxf3 Nd7 9. Nd2 a6 10. f4 Ngf6 11. Bd3 Nh5 12. Nc4 Qc7 {0-1 (44) Dietrich,W-Fries,G Kahl 1996}) 6... Bxf3 {[%emt 0:08:13]} 7. Qxf3 {[%emt 0:03:30] aiming for Bc4.} dxc5 {[%emt 0:02:15] [#]} (7... Nc6 $16) 8. Bc4 $1 $18 {[%emt 0:00:28] White is clearly better.} f6 {[%emt 0:03:22]} 9. e5 {[%emt 0:12:46]} Nc6 {[%emt 0:04:42]} 10. exf6 {[%emt 0:01:21]} Nxf6 {[%emt 0:16:32]} 11. O-O {[%emt 0:05:08]} Ne5 {[%emt 0:28:28]} (11... Qd7 $16) 12. Bb5+ {[%emt 0:00:25] A strong pair of Bishops.} ({Don't do} 12. Qxb7 Nxc4 13. Qb5+ Kf7 14. Qxc4+ Qd5) 12... Kf8 {[%emt 0:00:39]} 13. Qe2 {[%emt 0:08:00]} (13. Qxb7 Rb8 14. Qa6 Ne4) 13... Qc7 {[%emt 0:03:35]} (13... Nf7 $142) 14. h3 {[%emt 0:16:08]} (14. f4 $142 Nf7 15. Nd2) 14... a6 {[%emt 0:00:38]} 15. Ba4 {[%emt 0:02:45]} (15. f4 $18 Nf7 16. Bc4) 15... b5 {[%emt 0:01:33]} 16. Bc2 {[%emt 0:01:38]} Nf7 {[%emt 0:01:26]} 17. Bh4 {[%emt 0:01:14]} ({White should try} 17. f4 $16) 17... Qe5 {[%emt 0:00:30]} (17... Nh5 $14) 18. Qf3 {[%emt 0:02:49]} Rd8 {[%emt 0:00:35]} 19. Qb7 {[%emt 0:05:45]} Qe6 {[%emt 0:03:52]} 20. Na3 {[%emt 0:10:18] Rae1 is the strong threat.} Qc8 {[%emt 0:00:22]} 21. Qf3 {[%emt 0:04:24]} Nd6 $2 {[%emt 0:03:35]} (21... Nh5 $14) 22. Qe2 {[%emt 0:04:42]} (22. Rad1 $18 {and White stays clearly on top.}) 22... Kf7 $16 {[%emt 0:00:29]} 23. Rad1 {[%emt 0:05:31]} Rhe8 {[%emt 0:00:25]} 24. Bb1 {[%emt 0:00:51] White is more active.} Qe6 {[%emt 0:02:19]} 25. Qf3 {[%emt 0:00:22]} Nf5 {[%emt 0:01:38]} 26. Bxf6 {[%emt 0:01:30]} (26. Bg5 $5 {[%cal Rg2g4]}) 26... exf6 {[%emt 0:00:12]} (26... Bxf6 $11 27. Rfe1 Rxd1 28. Qxd1 Qc8) 27. Nc2 {[%emt 0:03:01]} ({Better is} 27. Bxf5 $16 gxf5 28. Nc2) 27... Bh6 {[%emt 0:01:01]} 28. Rfe1 {[%emt 0:00:39]} Rxd1 {[%emt 0:00:38]} 29. Rxd1 {[%emt 0:00:49][%cal Oa2a4]} Re7 {[%emt 0:01:13]} 30. Ne1 {[%emt 0:04:20][%cal Bc2e1,Be1d3,Bd3c5][%mdl 32]} Nh4 {[%emt 0:01:20]} 31. Qg3 {[%emt 0:00:41]} (31. Qg4 {with more complications.} Qe2 32. Bc2 Bg5 33. Qxe2 Rxe2 34. Kf1) 31... Qe2 {[%emt 0:00:57]} 32. Qd3 {[%emt 0:00:40]} Qxd3 {[%emt 0:00:39]} ({Don't play} 32... Qxb2 33. g3 $16) 33. Nxd3 {[%emt 0:00:01]} c4 {[%emt 0:00:08]} 34. Nc5 {[%emt 0:00:37]} Re2 {[%emt 0:00:56]} 35. b3 {[%emt 0:00:17]} (35. Be4 $5 {[%cal Rd1d7]} Nf5 36. Bd5+ (36. Rd7+ Ne7 $11) 36... Ke7 37. Bf3 $14) 35... cxb3 {[%emt 0:00:03] The position is equal.} 36. axb3 {[%emt 0:00:01]} Rd2 {[%emt 0:01:02]} 37. Rxd2 {[%emt 0:00:46]} Bxd2 {[%emt 0:00:01]} 38. Nxa6 {[%emt 0:00:39]} Bxc3 $11 {[%emt 0:00:03][%mdl 4096] Endgame KBN-KBN} 39. Nc7 {[%emt 0:00:05]} b4 $1 {[%emt 0:00:27]} 40. Kf1 {[%emt 0:01:12]} f5 {[%emt 0:00:20]} 41. g3 {[%emt 0:30:39]} Nf3 {[%emt 0:30:08] And now ...Nd2+ would win.} 42. Bc2 {[%emt 0:00:59]} Nd4 {[%emt 0:00:43]} 43. Bd3 {[%emt 0:00:26]} Bd2 {[%emt 0:00:51]} 44. Nb5 {[%emt 0:00:00]} Nxb5 {[%emt 0:00:00] Blacks defense is rewarded with a draw.  Weighted Error Value: White=0.24 (precise) /Black=0.27 (precise)} 1/2-1/2

[Event "44th Chess Olympiad Open 2022"]
[Site "Chennai"]
[Date "2022.07.30"]
[Round "2.54"]
[White "Croes, Octavio"]
[Black "Arunnuntapanich, Tinnakrit"]
[Result "0-1"]
[ECO "E70"]
[WhiteElo "1794"]
[BlackElo "2117"]
[Annotator "TA"]
[PlyCount "106"]
[EventDate "2022.07.29"]
[EventType "team-tourn"]
[EventCountry "IND"]
[SourceTitle "playchess.com"]
[Source "ChessBase"]
[SourceQuality "1"]
[WhiteTeam "ARU"]
[BlackTeam "Thailand"]
[BlackTeamCountry "THA"]
[TimeControl "40/5400+30:1800+30"]

{[%evp 10,106,39,35,36,39,37,32,53,45,52,57,102,16,29,20,22,-4,0,-12,8,0,26,-161,-25,-39,0,0,0,-41,-19,-19,-20,-27,-9,-29,-23,-52,-52,-52,-54,-53,-42,-41,-41,-44,-25,-64,-42,-222,-223,-220,-218,-219,-199,-256,-263,-276,-265,-262,-245,-284,-284,-431,-420,-429,-368,-362,-322,-424,-404,-414,-414,-459,-458,-461,-417,-518,-474,-785,-762,-739,-728,-669,-643,-2784,-3024,-5709,-4397,-12832,-5900,-12841,-12842,-12843,-12843,-12844,-12844,-12845,-12841]} 1. d4 {[%emt 0:00:02]} Nf6 {[%emt 0:00:05]} 2. c4 {[%emt 0:00:07]} g6 {[%emt 0:00:02]} 3. Nc3 {[%emt 0:00:08]} Bg7 {[%emt 0:00:05]} 4. e4 {[%emt 0:00:07]} d6 {[%emt 0:00:06]} 5. Bg5 {[%emt 0:00:15]} h6 {[%emt 0:06:24]} 6. Bf4 {[%emt 0:04:29]} c6 {[%emt 0:21:24] E70: King's Indian: Miscellaneous lines with 4 e4, including 5 Nge2 and 5 Bd3 0-0 6 Nge2.} 7. Be2 {[%emt 0:01:23]} Qa5 {[%emt 0:02:26] [#]} 8. Bd2 $146 {[%emt 0:09:09]} ({Predecessor:} 8. Qd2 e5 9. Be3 O-O 10. f3 Kh7 11. d5 c5 12. g4 Rh8 13. Nh3 Ne8 14. Nf2 {1-0 (65) Pape,M (2163)-Brandt,W (1979) Sottrum 2008}) 8... Qc7 {[%emt 0:00:43] White is slightly better.} 9. Rc1 {[%emt 0:05:11]} e5 {[%emt 0:01:03]} 10. d5 {[%emt 0:13:51]} c5 {[%emt 0:05:16]} 11. f4 {[%emt 0:01:35]} ({Better is} 11. Rb1 $16) 11... exf4 {[%emt 0:02:30]} 12. Bxf4 {[%emt 0:00:23] [#] Strongly threatening Nb5.} Qe7 {[%emt 0:01:24]} 13. Qd3 {[%emt 0:03:58] And now Nb5 would win.} O-O {[%emt 0:00:28]} 14. Nf3 {[%emt 0:01:44]} Nh5 {[%emt 0:03:03]} 15. Bd2 {[%emt 0:08:35]} Re8 {[%emt 0:05:01]} 16. Kf2 $2 {[%emt 0:00:26] [#]} (16. O-O $11 {and White stays safe.}) 16... Nf6 {[%emt 0:00:31]} (16... f5 $1 $19 {...Nf6 is the strong threat.} 17. Rhe1 (17. e5 $2 dxe5 18. d6 Qf7 $19) 17... fxe4 18. Qxe4 Qxe4 19. Nxe4 Rxe4) 17. Rhe1 $11 {[%emt 0:05:52]} Ng4+ {[%emt 0:04:10]} 18. Kg1 {[%emt 0:00:21]} Nd7 {[%emt 0:00:06]} 19. Bf4 {[%emt 0:10:05]} Nde5 {[%emt 0:01:23]} (19... g5 $5 {[%cal Rg5f4]} 20. Bd2 Nde5 21. Nxe5 Bxe5 22. Bxg4 Bxg4 $11) 20. Nxe5 {[%emt 0:02:00]} Bxe5 {[%emt 0:02:31]} 21. Bxe5 {[%emt 0:05:28]} Nxe5 {[%emt 0:02:34]} 22. Qg3 {[%emt 0:00:16]} Bd7 {[%emt 0:00:52]} 23. Bd3 {[%emt 0:04:18]} Qg5 $36 {[%emt 0:02:52][%mdl 2048] aiming for ...Qxg3. Black has the initiative.} 24. Re3 {[%emt 0:03:40]} Qxg3 {[%emt 0:01:49]} 25. Rxg3 {[%emt 0:00:08]} Re7 {[%emt 0:00:17]} 26. Be2 {[%emt 0:02:50]} Rae8 {[%emt 0:00:15]} 27. Nd1 {[%emt 0:01:41]} a6 {[%emt 0:00:43]} 28. Ne3 {[%emt 0:02:25]} Kh7 {[%emt 0:07:55]} 29. Bg4 $2 {[%emt 0:02:06] White is on the road to losing.} ({White should play} 29. Rf1 $15) 29... Bxg4 {[%emt 0:00:19]} 30. Nxg4 {[%emt 0:00:09]} Nxg4 {[%emt 0:00:14]} 31. Rxg4 {[%emt 0:00:14]} Rxe4 {[%emt 0:00:07]} 32. Rxe4 {[%emt 0:00:53]} (32. Rg3 $142) 32... Rxe4 $19 {[%emt 0:00:01][%mdl 4096] Endgame KR-KR} 33. Kf2 {[%emt 0:01:54]} Kg7 {[%emt 0:02:58]} 34. Kf3 {[%emt 0:00:56]} Rd4 {[%emt 0:00:06]} 35. Ke3 {[%emt 0:05:25]} b5 {[%emt 0:01:13]} 36. b3 {[%emt 0:01:06]} (36. cxb5 {is the only way for White.} axb5 37. a3) 36... bxc4 {[%emt 0:00:06]} 37. bxc4 {[%emt 0:00:09]} Kf6 {[%emt 0:00:10]} 38. Rf1+ {[%emt 0:00:28]} Ke7 {[%emt 0:00:20]} 39. Rc1 {[%emt 0:00:46]} f5 {[%emt 0:00:12]} 40. Rc3 {[%emt 0:00:10]} Kf6 {[%emt 0:00:55]} 41. Ra3 {[%emt 0:30:35]} Rxc4 {[%emt 0:30:12]} 42. Rxa6 {[%emt 0:00:15]} Ke5 {[%emt 0:00:03] Hoping for ...Rc2.} 43. a4 {[%emt 0:01:12]} Kxd5 {[%emt 0:00:06] Black is clearly winning.} 44. a5 {[%emt 0:00:10]} (44. Kd3 $142 Rb4 45. Ke3) 44... Rc2 {[%emt 0:00:45]} 45. Kf3 {[%emt 0:00:00]} Ra2 {[%emt 0:00:00]} 46. Ra8 {[%emt 0:00:00]} Kd4 {[%emt 0:00:00]} 47. a6 {[%emt 0:00:00]} c4 {[%emt 0:00:00][%cal Bc5c4,Bc4c3][%mdl 32]} 48. a7 {[%emt 0:00:00]} d5 {[%emt 0:00:00] Threatens to win with ...c3.} 49. Rg8 {[%emt 0:00:00]} Rxa7 {[%emt 0:00:00]} 50. Rxg6 {[%emt 0:00:00]} c3 {[%emt 0:00:00]} 51. Ke2 {[%emt 0:00:00]} Ra2+ {[%emt 0:00:00]} 52. Kd1 {[%emt 0:00:00]} f4 {[%emt 0:00:00]} 53. h4 {[%emt 0:00:00]} Ke5 {[%emt 0:02:48] Weighted Error Value: White=0.90/Black=0.14 (very precise)} 0-1